[Event "Titled Tuesday Blitz October 25 Late 2022"]
[White "Maksimovic, Bojan"]
[Black "Senthil Maran K"]
[WhiteFideId "14408120"]
[BlackFideId "25035681"]
[WhiteElo "2447"]
[BlackElo "2109"]
[Result "1-0"]
[Round "02"]
[TimeControl "180+1"]
[Date "2022.10.26"]
[WhiteClock "0:00:51"]
[BlackClock "0:00:07"]

1. e4 {[%clk 0:03:00]}  c5 {[%clk 0:02:58]} 2. Nf3 {[%clk 0:03:00]}  g6 {[%clk 0:02:57]} 3. d4 {[%clk 0:03:00]}  cxd4 {[%clk 0:02:57]} 4. Nxd4 {[%clk 0:03:01]}  Nc6 {[%clk 0:02:57]} 5. Nc3 {[%clk 0:03:00]}  Bg7 {[%clk 0:02:57]} 6. Be3 {[%clk 0:03:01]}  Nf6 {[%clk 0:02:58]} 7. Nxc6 {[%clk 0:03:01]}  bxc6 {[%clk 0:02:58]} 8. e5 {[%clk 0:03:02]}  Ng8 {[%clk 0:02:58]} 9. Bd4 {[%clk 0:03:03]}  Nh6 {[%clk 0:02:55]} 10. e6 {[%clk 0:03:02]}  f6 {[%clk 0:02:45]} 11. exd7+ {[%clk 0:03:01]}  Qxd7 {[%clk 0:02:31]} 12. Bc4 {[%clk 0:02:59]}  Nf7 {[%clk 0:02:15]} 13. Be3 {[%clk 0:02:41]}  O-O {[%clk 0:02:00]} 14. Qxd7 {[%clk 0:02:41]}  Bxd7 {[%clk 0:02:01]} 15. O-O-O {[%clk 0:02:41]}  Bf5 {[%clk 0:01:52]} 16. Bc5 {[%clk 0:02:41]}  Rfe8 {[%clk 0:01:40]} 17. Rhe1 {[%clk 0:02:40]}  e5 {[%clk 0:01:34]} 18. Ne4 {[%clk 0:02:08]}  Be6 {[%clk 0:01:04]} 19. Bb3 {[%clk 0:02:07]}  f5 {[%clk 0:00:53]} 20. Nd6 {[%clk 0:02:07]}  Nxd6 {[%clk 0:00:49]} 21. Rxd6 {[%clk 0:02:08]}  Bxb3 {[%clk 0:00:46]} 22. axb3 {[%clk 0:02:09]}  Rec8 {[%clk 0:00:26]} 23. Rd7 {[%clk 0:02:08]}  a5 {[%clk 0:00:20]} 24. c3 {[%clk 0:01:33]}  Bf6 {[%clk 0:00:18]} 25. Kc2 {[%clk 0:01:27]}  Rd8 {[%clk 0:00:17]} 26. Red1 {[%clk 0:01:19]}  e4 {[%clk 0:00:17]} 27. Bb6 {[%clk 0:01:06]}  Rxd7 {[%clk 0:00:17]} 28. Rxd7 {[%clk 0:01:07]}  a4 {[%clk 0:00:18]} 29. bxa4 {[%clk 0:01:06]}  Rxa4 {[%clk 0:00:19]} 30. Rd6 {[%clk 0:01:02]}  Be5 {[%clk 0:00:19]} 31. Rxc6 {[%clk 0:01:01]}  Bxh2 {[%clk 0:00:19]} 32. g3 {[%clk 0:01:01]}  f4 {[%clk 0:00:17]} 33. Rc8+ {[%clk 0:00:52]}  Kf7 {[%clk 0:00:17]} 34. Rc7+ {[%clk 0:00:53]}  Ke6 {[%clk 0:00:14]} 35. gxf4 {[%clk 0:00:51]}  h5 {[%clk 0:00:14]} 36. Be3 {[%clk 0:00:51]}  Kf5 {[%clk 0:00:14]} 37. Rc5+ {[%clk 0:00:50]}  Kf6 {[%clk 0:00:11]} 38. Rg5 {[%clk 0:00:50]}  Ra6 {[%clk 0:00:09]} 39. Rg2 {[%clk 0:00:49]}  Kf5 {[%clk 0:00:08]} 40. Rxh2 {[%clk 0:00:50]}  Ra8 {[%clk 0:00:09]} 41. Rg2 {[%clk 0:00:50]}  Rh8 {[%clk 0:00:09]} 42. Rg5+ {[%clk 0:00:50]}  Kf6 {[%clk 0:00:09]} 43. Bd4+ {[%clk 0:00:50]}  Kf7 {[%clk 0:00:07]} 44. Bxh8 {[%clk 0:00:51]} 1-0


[Site "https://www.chess.com"]

[Event "Titled Tuesday Blitz October 25 Late 2022"]
[White "Mihajlov, Sebastian"]
[Black "Rasulov, Vugar"]
[WhiteFideId "1512110"]
[BlackFideId "13402390"]
[WhiteElo "2464"]
[BlackElo "2509"]
[Result "0-1"]
[Round "02"]
[TimeControl "180+1"]
[Date "2022.10.26"]
[WhiteClock "0:00:05"]
[BlackClock "0:00:27"]

1. e4 {[%clk 0:03:00]}  c5 {[%clk 0:03:00]} 2. Nf3 {[%clk 0:03:00]}  e6 {[%clk 0:03:00]} 3. d4 {[%clk 0:03:01]}  cxd4 {[%clk 0:03:01]} 4. Nxd4 {[%clk 0:03:02]}  Nc6 {[%clk 0:03:01]} 5. Nc3 {[%clk 0:03:02]}  Qc7 {[%clk 0:03:01]} 6. Be3 {[%clk 0:03:03]}  a6 {[%clk 0:03:01]} 7. Qf3 {[%clk 0:03:03]}  Nf6 {[%clk 0:03:00]} 8. O-O-O {[%clk 0:03:03]}  Ne5 {[%clk 0:02:58]} 9. Qg3 {[%clk 0:03:03]}  b5 {[%clk 0:02:58]} 10. Bxb5 {[%clk 0:02:23]}  axb5 {[%clk 0:02:53]} 11. Ndxb5 {[%clk 0:02:22]}  Qb8 {[%clk 0:02:51]} 12. Bf4 {[%clk 0:02:23]}  d6 {[%clk 0:02:44]} 13. Rxd6 {[%clk 0:02:22]}  Bxd6 {[%clk 0:02:45]} 14. Nxd6+ {[%clk 0:02:22]}  Qxd6 {[%clk 0:02:45]} 15. Bxe5 {[%clk 0:02:12]}  Qc5 {[%clk 0:02:36]} 16. Bd6 {[%clk 0:01:55]}  Qc6 {[%clk 0:02:20]} 17. e5 {[%clk 0:01:51]}  Nd7 {[%clk 0:01:39]} 18. Qxg7 {[%clk 0:01:44]}  Rf8 {[%clk 0:01:40]} 19. Rd1 {[%clk 0:00:25]}  Bb7 {[%clk 0:01:39]} 20. f3 {[%clk 0:00:15]}  Qb6 {[%clk 0:01:31]} 21. Qg5 {[%clk 0:00:11]}  Qd8 {[%clk 0:01:24]} 22. Qxd8+ {[%clk 0:00:05]}  Rxd8 {[%clk 0:01:25]} 23. Bxf8 {[%clk 0:00:04]}  Kxf8 {[%clk 0:01:24]} 24. a4 {[%clk 0:00:03]}  Ke7 {[%clk 0:01:24]} 25. f4 {[%clk 0:00:03]}  Bxg2 {[%clk 0:01:23]} 26. b4 {[%clk 0:00:04]}  Rc8 {[%clk 0:01:22]} 27. Kb2 {[%clk 0:00:04]}  Nb6 {[%clk 0:01:23]} 28. a5 {[%clk 0:00:03]}  Nd5 {[%clk 0:01:17]} 29. Nxd5+ {[%clk 0:00:03]}  Bxd5 {[%clk 0:01:18]} 30. f5 {[%clk 0:00:03]}  Rc4 {[%clk 0:01:16]} 31. f6+ {[%clk 0:00:04]}  Kd7 {[%clk 0:01:16]} 32. c3 {[%clk 0:00:05]}  Kc6 {[%clk 0:01:14]} 33. Rg1 {[%clk 0:00:04]}  Re4 {[%clk 0:01:11]} 34. Rg7 {[%clk 0:00:04]}  Re2+ {[%clk 0:01:10]} 35. Kc1 {[%clk 0:00:04]}  Rxe5 {[%clk 0:01:06]} 36. Rxf7 {[%clk 0:00:05]}  Rf5 {[%clk 0:01:07]} 37. a6 {[%clk 0:00:03]}  e5 {[%clk 0:00:56]} 38. a7 {[%clk 0:00:04]}  Rf1+ {[%clk 0:00:49]} 39. Kd2 {[%clk 0:00:04]}  Ra1 {[%clk 0:00:49]} 40. Re7 {[%clk 0:00:04]}  Kd6 {[%clk 0:00:47]} 41. Rxh7 {[%clk 0:00:04]}  Ra3 {[%clk 0:00:45]} 42. b5 {[%clk 0:00:04]}  Ke6 {[%clk 0:00:34]} 43. f7 {[%clk 0:00:04]}  Ke7 {[%clk 0:00:34]} 44. b6 {[%clk 0:00:04]}  Kf8 {[%clk 0:00:30]} 45. c4 {[%clk 0:00:04]}  Bc6 {[%clk 0:00:29]} 46. c5 {[%clk 0:00:05]}  e4 {[%clk 0:00:28]} 47. Rh8+ {[%clk 0:00:04]}  Kxf7 {[%clk 0:00:28]} 48. Rc8 {[%clk 0:00:05]}  e3+ {[%clk 0:00:29]} 49. Kc2 {[%clk 0:00:06]}  Be4+ {[%clk 0:00:27]} 50. Kb2 {[%clk 0:00:06]}  e2 {[%clk 0:00:27]} 51. Kxa3 {[%clk 0:00:06]}  e1=Q {[%clk 0:00:27]} 52. c6 {[%clk 0:00:05]}  Qa5+ {[%clk 0:00:27]} 0-1


[Site "https://www.chess.com"]

[Event "Titled Tuesday Blitz October 25 Late 2022"]
[White "Naroditsky, Daniel"]
[Black "Atakishiyev, Elmar"]
[WhiteFideId "2026961"]
[BlackFideId "13410547"]
[WhiteElo "2628"]
[BlackElo "2203"]
[Result "1-0"]
[Round "02"]
[TimeControl "180+1"]
[Date "2022.10.26"]
[WhiteClock "0:00:48"]
[BlackClock "0:00:11"]

1. e4 {[%clk 0:03:00]}  e6 {[%clk 0:02:58]} 2. d4 {[%clk 0:03:00]}  d5 {[%clk 0:02:58]} 3. Nd2 {[%clk 0:03:01]}  dxe4 {[%clk 0:02:52]} 4. Nxe4 {[%clk 0:03:01]}  Bd7 {[%clk 0:02:53]} 5. Nf3 {[%clk 0:03:00]}  Bc6 {[%clk 0:02:53]} 6. Bd3 {[%clk 0:03:00]}  Nd7 {[%clk 0:02:49]} 7. O-O {[%clk 0:03:00]}  Ngf6 {[%clk 0:02:50]} 8. Ned2 {[%clk 0:03:00]}  Be7 {[%clk 0:02:49]} 9. b3 {[%clk 0:03:00]}  O-O {[%clk 0:02:49]} 10. Bb2 {[%clk 0:03:00]}  Bxf3 {[%clk 0:02:48]} 11. Nxf3 {[%clk 0:02:53]}  c6 {[%clk 0:02:48]} 12. c4 {[%clk 0:02:53]}  a5 {[%clk 0:02:48]} 13. a3 {[%clk 0:02:42]}  c5 {[%clk 0:02:42]} 14. Qc2 {[%clk 0:02:33]}  cxd4 {[%clk 0:02:41]} 15. Nxd4 {[%clk 0:02:33]}  Nc5 {[%clk 0:02:40]} 16. Be2 {[%clk 0:02:33]}  Rc8 {[%clk 0:02:36]} 17. Rad1 {[%clk 0:02:29]}  Qb6 {[%clk 0:02:36]} 18. Nb5 {[%clk 0:02:29]}  Rfd8 {[%clk 0:02:35]} 19. Bf3 {[%clk 0:02:18]}  h6 {[%clk 0:02:25]} 20. Bd4 {[%clk 0:02:07]}  Qa6 {[%clk 0:01:59]} 21. b4 {[%clk 0:01:53]}  Ncd7 {[%clk 0:01:16]} 22. Qb3 {[%clk 0:01:52]}  Nb6 {[%clk 0:01:14]} 23. Be2 {[%clk 0:01:46]}  axb4 {[%clk 0:00:58]} 24. axb4 {[%clk 0:01:41]}  Qa4 {[%clk 0:00:59]} 25. Qxa4 {[%clk 0:01:16]}  Nxa4 {[%clk 0:01:00]} 26. c5 {[%clk 0:01:16]}  Nd5 {[%clk 0:00:49]} 27. Ra1 {[%clk 0:01:04]}  Ra8 {[%clk 0:00:20]} 28. Bd1 {[%clk 0:01:04]}  Nac3 {[%clk 0:00:13]} 29. Bxc3 {[%clk 0:00:50]}  Nxc3 {[%clk 0:00:12]} 30. Rxa8 {[%clk 0:00:50]}  Nxb5 {[%clk 0:00:12]} 31. Rxd8+ {[%clk 0:00:51]}  Bxd8 {[%clk 0:00:12]} 32. Bf3 {[%clk 0:00:52]}  b6 {[%clk 0:00:10]} 33. Rd1 {[%clk 0:00:52]}  Bc7 {[%clk 0:00:11]} 34. Rd7 {[%clk 0:00:51]}  bxc5 {[%clk 0:00:11]} 35. Bc6 {[%clk 0:00:48]} 1-0


[Site "https://www.chess.com"]

[Event "Titled Tuesday Blitz October 25 Late 2022"]
[White "Osmak, Yuliia"]
[Black "Andreikin, Dmitry"]
[WhiteFideId "14101602"]
[BlackFideId "4158814"]
[WhiteElo "2328"]
[BlackElo "2736"]
[Result "0-1"]
[Round "02"]
[TimeControl "180+1"]
[Date "2022.10.26"]
[WhiteClock "0:00:32"]
[BlackClock "0:01:37"]

1. d4 {[%clk 0:03:00]}  f5 {[%clk 0:02:59]} 2. Nc3 {[%clk 0:02:57]}  d5 {[%clk 0:02:58]} 3. Bf4 {[%clk 0:02:56]}  Nf6 {[%clk 0:02:57]} 4. e3 {[%clk 0:02:55]}  e6 {[%clk 0:02:56]} 5. Nf3 {[%clk 0:02:55]}  a6 {[%clk 0:02:55]} 6. Bd3 {[%clk 0:02:55]}  c5 {[%clk 0:02:54]} 7. dxc5 {[%clk 0:02:56]}  Bxc5 {[%clk 0:02:54]} 8. O-O {[%clk 0:02:54]}  Nc6 {[%clk 0:02:53]} 9. Ne2 {[%clk 0:02:52]}  Qe7 {[%clk 0:02:48]} 10. c4 {[%clk 0:02:50]}  e5 {[%clk 0:02:37]} 11. cxd5 {[%clk 0:02:47]}  exf4 {[%clk 0:02:37]} 12. dxc6 {[%clk 0:02:38]}  fxe3 {[%clk 0:02:37]} 13. Ned4 {[%clk 0:02:29]}  O-O {[%clk 0:02:30]} 14. Kh1 {[%clk 0:02:07]}  f4 {[%clk 0:02:16]} 15. fxe3 {[%clk 0:02:04]}  fxe3 {[%clk 0:02:17]} 16. Qb3+ {[%clk 0:01:47]}  Kh8 {[%clk 0:02:16]} 17. Rae1 {[%clk 0:01:47]}  bxc6 {[%clk 0:02:10]} 18. Nxc6 {[%clk 0:01:42]}  Qc7 {[%clk 0:02:10]} 19. Nce5 {[%clk 0:01:38]}  Bb7 {[%clk 0:02:03]} 20. Bc4 {[%clk 0:01:30]}  Bxf3 {[%clk 0:01:58]} 21. Nxf3 {[%clk 0:01:28]}  Ne4 {[%clk 0:01:55]} 22. Re2 {[%clk 0:01:10]}  Rab8 {[%clk 0:01:45]} 23. Qc2 {[%clk 0:01:08]}  Nf2+ {[%clk 0:01:45]} 24. Kg1 {[%clk 0:01:06]}  Rb6 {[%clk 0:01:44]} 25. Bd3 {[%clk 0:00:50]}  Rh6 {[%clk 0:01:40]} 26. Rxe3 {[%clk 0:00:42]}  Ng4 {[%clk 0:01:37]} 27. Nd4 {[%clk 0:00:32]}  Qxh2# {[%clk 0:01:37]} 0-1


[Site "https://www.chess.com"]

[Event "Titled Tuesday Blitz October 25 Late 2022"]
[White "Ozdemir, Serhan Berat"]
[Black "Karacsonyi, Gellert"]
[WhiteFideId "6374611"]
[BlackFideId "764620"]
[WhiteElo "2016"]
[BlackElo "2308"]
[Result "0-1"]
[Round "02"]
[TimeControl "180+1"]
[Date "2022.10.26"]
[WhiteClock "0:00:01"]
[BlackClock "0:01:14"]

1. e4 {[%clk 0:03:00]}  c5 {[%clk 0:02:59]} 2. Nf3 {[%clk 0:03:01]}  Nc6 {[%clk 0:02:59]} 3. Bb5 {[%clk 0:03:00]}  g6 {[%clk 0:02:59]} 4. Bxc6 {[%clk 0:03:00]}  dxc6 {[%clk 0:03:00]} 5. d3 {[%clk 0:03:01]}  Bg7 {[%clk 0:03:00]} 6. h3 {[%clk 0:03:00]}  Nf6 {[%clk 0:03:00]} 7. Nc3 {[%clk 0:02:58]}  Nd7 {[%clk 0:03:01]} 8. Be3 {[%clk 0:02:58]}  e5 {[%clk 0:03:01]} 9. Qd2 {[%clk 0:02:54]}  Qe7 {[%clk 0:03:01]} 10. O-O {[%clk 0:02:50]}  Nf8 {[%clk 0:03:00]} 11. Nh2 {[%clk 0:02:42]}  Ne6 {[%clk 0:03:00]} 12. Ne2 {[%clk 0:02:41]}  O-O {[%clk 0:02:59]} 13. Rae1 {[%clk 0:02:21]}  f5 {[%clk 0:02:58]} 14. exf5 {[%clk 0:02:10]}  gxf5 {[%clk 0:02:48]} 15. f4 {[%clk 0:02:08]}  e4 {[%clk 0:02:27]} 16. dxe4 {[%clk 0:02:05]}  fxe4 {[%clk 0:02:27]} 17. Ng4 {[%clk 0:01:43]}  Rd8 {[%clk 0:02:17]} 18. Qc1 {[%clk 0:01:42]}  Nd4 {[%clk 0:02:16]} 19. c3 {[%clk 0:01:35]}  Nxe2+ {[%clk 0:02:04]} 20. Rxe2 {[%clk 0:01:35]}  Be6 {[%clk 0:01:59]} 21. f5 {[%clk 0:01:30]}  Bc4 {[%clk 0:01:49]} 22. f6 {[%clk 0:01:30]}  Qe6 {[%clk 0:01:41]} 23. fxg7 {[%clk 0:01:06]}  Bxe2 {[%clk 0:01:41]} 24. Nh6+ {[%clk 0:00:55]}  Kxg7 {[%clk 0:01:40]} 25. Nf5+ {[%clk 0:00:05]}  Qxf5 {[%clk 0:01:28]} 26. Bh6+ {[%clk 0:00:02]}  Kg6 {[%clk 0:01:14]} 27. Rxf5 {[%clk 0:00:02]}  Rd1+ {[%clk 0:01:14]} 28. Kf2 {[%clk 0:00:01]}  Rxc1 {[%clk 0:01:14]} 0-1


[Site "https://www.chess.com"]

[Event "Titled Tuesday Blitz October 25 Late 2022"]
[White "Ozen, Bahadir"]
[Black "Nozdrachev, Leonid"]
[WhiteFideId "6337058"]
[BlackFideId "24113433"]
[WhiteElo "2503"]
[BlackElo "2249"]
[Result "1/2-1/2"]
[Round "02"]
[TimeControl "180+1"]
[Date "2022.10.26"]
[WhiteClock "0:01:11"]
[BlackClock "0:01:28"]

1. g3 {[%clk 0:03:00]}  Nf6 {[%clk 0:02:56]} 2. Bg2 {[%clk 0:03:00]}  g6 {[%clk 0:02:56]} 3. d3 {[%clk 0:02:59]}  Bg7 {[%clk 0:02:57]} 4. Nf3 {[%clk 0:02:59]}  O-O {[%clk 0:02:57]} 5. O-O {[%clk 0:03:00]}  d5 {[%clk 0:02:56]} 6. c3 {[%clk 0:02:59]}  Nc6 {[%clk 0:02:57]} 7. Nbd2 {[%clk 0:02:58]}  e5 {[%clk 0:02:56]} 8. Qc2 {[%clk 0:02:59]}  e4 {[%clk 0:02:51]} 9. dxe4 {[%clk 0:02:51]}  dxe4 {[%clk 0:02:52]} 10. Nxe4 {[%clk 0:02:51]}  Nxe4 {[%clk 0:02:53]} 11. Qxe4 {[%clk 0:02:51]}  Re8 {[%clk 0:02:51]} 12. Qd3 {[%clk 0:02:30]}  Qe7 {[%clk 0:02:39]} 13. Be3 {[%clk 0:02:24]}  Bf5 {[%clk 0:02:34]} 14. Qb5 {[%clk 0:02:24]}  Be4 {[%clk 0:02:27]} 15. Rad1 {[%clk 0:02:21]}  a6 {[%clk 0:02:26]} 16. Qb3 {[%clk 0:02:16]}  Na5 {[%clk 0:02:23]} 17. Qa4 {[%clk 0:02:15]}  b6 {[%clk 0:02:20]} 18. Bg5 {[%clk 0:02:09]}  Qe6 {[%clk 0:02:15]} 19. Qd7 {[%clk 0:01:59]}  Qxa2 {[%clk 0:02:11]} 20. Qxc7 {[%clk 0:01:59]}  Rac8 {[%clk 0:02:04]} 21. Qxb6 {[%clk 0:01:56]}  Nc4 {[%clk 0:02:04]} 22. Qa7 {[%clk 0:01:46]}  Qxb2 {[%clk 0:01:55]} 23. Qxa6 {[%clk 0:01:42]}  Qxe2 {[%clk 0:01:50]} 24. Rfe1 {[%clk 0:01:37]}  Qc2 {[%clk 0:01:42]} 25. Rc1 {[%clk 0:01:37]}  Qd3 {[%clk 0:01:30]} 26. Rcd1 {[%clk 0:01:16]}  Qc2 {[%clk 0:01:29]} 27. Rc1 {[%clk 0:01:11]}  Qd3 {[%clk 0:01:28]} 28. Rcd1 {[%clk 0:01:11]}  Qc2 {[%clk 0:01:28]} 1/2-1/2


[Site "https://www.chess.com"]

[Event "Titled Tuesday Blitz October 25 Late 2022"]
[White "Pap, Gyula"]
[Black "Ballester Llagaria, Luis Eduardo"]
[WhiteFideId "725323"]
[BlackFideId "2297620"]
[WhiteElo "2519"]
[BlackElo "2344"]
[Result "1-0"]
[Round "02"]
[TimeControl "180+1"]
[Date "2022.10.26"]
[WhiteClock "0:01:08"]
[BlackClock "0:00:32"]

1. g3 {[%clk 0:03:00]}  d5 {[%clk 0:02:57]} 2. Nf3 {[%clk 0:03:00]}  Bg4 {[%clk 0:02:57]} 3. Bg2 {[%clk 0:02:59]}  c6 {[%clk 0:02:57]} 4. O-O {[%clk 0:02:58]}  Nd7 {[%clk 0:02:57]} 5. b3 {[%clk 0:02:56]}  e5 {[%clk 0:02:56]} 6. Bb2 {[%clk 0:02:54]}  Bd6 {[%clk 0:02:57]} 7. d4 {[%clk 0:02:51]}  e4 {[%clk 0:02:41]} 8. Ne5 {[%clk 0:02:51]}  Nxe5 {[%clk 0:02:42]} 9. dxe5 {[%clk 0:02:51]}  Bc5 {[%clk 0:02:40]} 10. c4 {[%clk 0:02:13]}  Ne7 {[%clk 0:02:39]} 11. Nc3 {[%clk 0:02:12]}  a6 {[%clk 0:01:56]} 12. cxd5 {[%clk 0:02:02]}  cxd5 {[%clk 0:01:56]} 13. Rc1 {[%clk 0:01:56]}  Ba7 {[%clk 0:01:56]} 14. Ba3 {[%clk 0:01:54]}  Be6 {[%clk 0:01:45]} 15. Kh1 {[%clk 0:01:54]}  h5 {[%clk 0:01:40]} 16. h3 {[%clk 0:01:34]}  Ng6 {[%clk 0:01:19]} 17. Bd6 {[%clk 0:01:31]}  h4 {[%clk 0:01:07]} 18. Nxd5 {[%clk 0:01:27]}  Bxd5 {[%clk 0:00:50]} 19. Qxd5 {[%clk 0:01:26]}  hxg3 {[%clk 0:00:51]} 20. fxg3 {[%clk 0:01:23]}  Qd7 {[%clk 0:00:52]} 21. e6 {[%clk 0:01:13]}  Qxe6 {[%clk 0:00:46]} 22. Qxe6+ {[%clk 0:01:13]}  fxe6 {[%clk 0:00:47]} 23. Bxe4 {[%clk 0:01:14]}  Rxh3+ {[%clk 0:00:42]} 24. Kg2 {[%clk 0:01:13]}  Rh6 {[%clk 0:00:43]} 25. Rc7 {[%clk 0:01:09]}  Rd8 {[%clk 0:00:32]} 26. Bxg6+ {[%clk 0:01:08]} 1-0


[Site "https://www.chess.com"]

[Event "Titled Tuesday Blitz October 25 Late 2022"]
[White "Papasimakopoulos, Alexandros"]
[Black "Ljukin, Sergei"]
[WhiteFideId "4244125"]
[BlackFideId "14102200"]
[WhiteElo "2357"]
[BlackElo "2312"]
[Result "1-0"]
[Round "02"]
[TimeControl "180+1"]
[Date "2022.10.26"]
[WhiteClock "0:01:42"]
[BlackClock "0:00:03"]

1. d4 {[%clk 0:03:00]}  d5 {[%clk 0:00:58]} 2. c4 {[%clk 0:02:02]}  c6 {[%clk 0:00:57]} 3. cxd5 {[%clk 0:02:02]}  cxd5 {[%clk 0:00:57]} 4. Bf4 {[%clk 0:02:03]}  Nf6 {[%clk 0:00:57]} 5. Nc3 {[%clk 0:02:03]}  Nc6 {[%clk 0:00:58]} 6. e3 {[%clk 0:02:04]}  Bf5 {[%clk 0:00:58]} 7. Qb3 {[%clk 0:02:03]}  Na5 {[%clk 0:00:58]} 8. Qa4+ {[%clk 0:02:04]}  Bd7 {[%clk 0:00:58]} 9. Qc2 {[%clk 0:02:04]}  e6 {[%clk 0:00:57]} 10. Bd3 {[%clk 0:02:05]}  Nc6 {[%clk 0:00:58]} 11. h3 {[%clk 0:02:05]}  Nb4 {[%clk 0:00:56]} 12. Qd1 {[%clk 0:02:06]}  Nxd3+ {[%clk 0:00:57]} 13. Qxd3 {[%clk 0:02:07]}  Be7 {[%clk 0:00:56]} 14. Nf3 {[%clk 0:02:07]}  O-O {[%clk 0:00:56]} 15. O-O {[%clk 0:02:08]}  Rc8 {[%clk 0:00:54]} 16. Ne5 {[%clk 0:02:08]}  Be8 {[%clk 0:00:51]} 17. Rac1 {[%clk 0:02:08]}  Nd7 {[%clk 0:00:49]} 18. Rc2 {[%clk 0:02:07]}  Nxe5 {[%clk 0:00:48]} 19. Bxe5 {[%clk 0:02:08]}  f6 {[%clk 0:00:45]} 20. Bg3 {[%clk 0:02:08]}  Bg6 {[%clk 0:00:44]} 21. e4 {[%clk 0:02:09]}  dxe4 {[%clk 0:00:43]} 22. Nxe4 {[%clk 0:02:09]}  Rxc2 {[%clk 0:00:42]} 23. Qxc2 {[%clk 0:02:10]}  Qxd4 {[%clk 0:00:42]} 24. Re1 {[%clk 0:02:11]}  f5 {[%clk 0:00:33]} 25. Qc3 {[%clk 0:02:00]}  Qxc3 {[%clk 0:00:19]} 26. Nxc3 {[%clk 0:02:01]}  f4 {[%clk 0:00:19]} 27. Bh2 {[%clk 0:02:01]}  Bf5 {[%clk 0:00:18]} 28. f3 {[%clk 0:02:01]}  g5 {[%clk 0:00:17]} 29. Kh1 {[%clk 0:02:00]}  Rd8 {[%clk 0:00:14]} 30. Bg1 {[%clk 0:02:01]}  Rd2 {[%clk 0:00:13]} 31. Bxa7 {[%clk 0:01:57]}  Rxb2 {[%clk 0:00:12]} 32. Bd4 {[%clk 0:01:58]}  Rd2 {[%clk 0:00:10]} 33. Be5 {[%clk 0:01:58]}  Bc5 {[%clk 0:00:08]} 34. Ne4 {[%clk 0:01:58]}  Bxe4 {[%clk 0:00:07]} 35. fxe4 {[%clk 0:01:59]}  Bf2 {[%clk 0:00:07]} 36. Rb1 {[%clk 0:01:54]}  Bg3 {[%clk 0:00:06]} 37. a4 {[%clk 0:01:54]}  Re2 {[%clk 0:00:06]} 38. Bc3 {[%clk 0:01:51]}  Rxe4 {[%clk 0:00:05]} 39. Rxb7 {[%clk 0:01:51]}  Rxa4 {[%clk 0:00:04]} 40. Rg7+ {[%clk 0:01:49]}  Kf8 {[%clk 0:00:04]} 41. Rxg5 {[%clk 0:01:49]}  Rc4 {[%clk 0:00:04]} 42. Bb2 {[%clk 0:01:42]}  Rb4 {[%clk 0:00:03]} 43. Ba3 {[%clk 0:01:42]} 1-0


[Site "https://www.chess.com"]

[Event "Titled Tuesday Blitz October 25 Late 2022"]
[White "Pein, Jonathan"]
[Black "Kaplan, Ebru"]
[WhiteFideId "417092"]
[BlackFideId "6315194"]
[WhiteElo "2240"]
[BlackElo "1941"]
[Result "1-0"]
[Round "02"]
[TimeControl "180+1"]
[Date "2022.10.26"]
[WhiteClock "0:00:20"]
[BlackClock "0:00:09"]

1. e4 {[%clk 0:03:00]}  c5 {[%clk 0:02:59]} 2. Nf3 {[%clk 0:02:58]}  d6 {[%clk 0:02:59]} 3. d4 {[%clk 0:02:56]}  cxd4 {[%clk 0:03:00]} 4. Nxd4 {[%clk 0:02:57]}  Nf6 {[%clk 0:03:00]} 5. Nc3 {[%clk 0:02:57]}  a6 {[%clk 0:03:01]} 6. Nb3 {[%clk 0:02:55]}  e5 {[%clk 0:02:59]} 7. f4 {[%clk 0:02:51]}  Be7 {[%clk 0:02:46]} 8. fxe5 {[%clk 0:02:28]}  dxe5 {[%clk 0:02:46]} 9. Bg5 {[%clk 0:02:24]}  Nc6 {[%clk 0:02:43]} 10. Qxd8+ {[%clk 0:02:21]}  Bxd8 {[%clk 0:02:41]} 11. O-O-O {[%clk 0:02:14]}  O-O {[%clk 0:02:37]} 12. Bc4 {[%clk 0:02:11]}  b5 {[%clk 0:02:33]} 13. Bd3 {[%clk 0:01:38]}  Bg4 {[%clk 0:02:25]} 14. Rdf1 {[%clk 0:01:37]}  h6 {[%clk 0:02:17]} 15. Be3 {[%clk 0:01:27]}  Be7 {[%clk 0:02:13]} 16. h3 {[%clk 0:01:20]}  Be6 {[%clk 0:02:04]} 17. g4 {[%clk 0:01:17]}  Rac8 {[%clk 0:01:46]} 18. Kb1 {[%clk 0:01:16]}  Nb4 {[%clk 0:01:46]} 19. g5 {[%clk 0:01:04]}  hxg5 {[%clk 0:01:42]} 20. Bxg5 {[%clk 0:01:05]}  Nxd3 {[%clk 0:01:41]} 21. cxd3 {[%clk 0:01:05]}  Bxb3 {[%clk 0:01:42]} 22. axb3 {[%clk 0:01:05]}  Rfe8 {[%clk 0:01:32]} 23. Bxf6 {[%clk 0:00:59]}  Bxf6 {[%clk 0:01:32]} 24. Rhg1 {[%clk 0:00:58]}  Re6 {[%clk 0:01:12]} 25. Nd5 {[%clk 0:00:58]}  Kf8 {[%clk 0:01:10]} 26. Rf5 {[%clk 0:00:53]}  Bd8 {[%clk 0:01:03]} 27. Rgf1 {[%clk 0:00:52]}  f6 {[%clk 0:01:00]} 28. h4 {[%clk 0:00:52]}  Kf7 {[%clk 0:00:59]} 29. h5 {[%clk 0:00:52]}  Be7 {[%clk 0:00:56]} 30. R5f3 {[%clk 0:00:52]}  Rh8 {[%clk 0:00:55]} 31. Rh1 {[%clk 0:00:50]}  Rc6 {[%clk 0:00:52]} 32. Rf5 {[%clk 0:00:46]}  Bc5 {[%clk 0:00:49]} 33. Rhf1 {[%clk 0:00:46]}  Be7 {[%clk 0:00:46]} 34. Rxe5 {[%clk 0:00:45]}  Bd6 {[%clk 0:00:38]} 35. Ref5 {[%clk 0:00:45]}  Ke6 {[%clk 0:00:33]} 36. Nxf6 {[%clk 0:00:40]}  gxf6 {[%clk 0:00:31]} 37. Rxf6+ {[%clk 0:00:41]}  Ke5 {[%clk 0:00:28]} 38. R1f5+ {[%clk 0:00:40]}  Kd4 {[%clk 0:00:28]} 39. Rd5+ {[%clk 0:00:40]}  Ke3 {[%clk 0:00:28]} 40. Rfxd6 {[%clk 0:00:41]}  Rcc8 {[%clk 0:00:25]} 41. Rxa6 {[%clk 0:00:37]}  Kd2 {[%clk 0:00:25]} 42. h6 {[%clk 0:00:32]}  Rhg8 {[%clk 0:00:20]} 43. Rxb5 {[%clk 0:00:29]}  Rg1+ {[%clk 0:00:19]} 44. Ka2 {[%clk 0:00:29]}  Rcc1 {[%clk 0:00:20]} 45. b4 {[%clk 0:00:16]}  Ra1+ {[%clk 0:00:20]} 46. Kb3 {[%clk 0:00:17]}  Rxa6 {[%clk 0:00:20]} 47. Rh5 {[%clk 0:00:18]}  Rg8 {[%clk 0:00:19]} 48. h7 {[%clk 0:00:18]}  Rh8 {[%clk 0:00:19]} 49. Kc4 {[%clk 0:00:19]}  Ra7 {[%clk 0:00:19]} 50. d4 {[%clk 0:00:19]}  Rc7+ {[%clk 0:00:18]} 51. Kd5 {[%clk 0:00:18]}  Kd3 {[%clk 0:00:17]} 52. e5 {[%clk 0:00:17]}  Rd7+ {[%clk 0:00:17]} 53. Kc6 {[%clk 0:00:17]}  Rxd4 {[%clk 0:00:17]} 54. b5 {[%clk 0:00:17]}  Rdd8 {[%clk 0:00:16]} 55. b6 {[%clk 0:00:18]}  Rc8+ {[%clk 0:00:15]} 56. Kd7 {[%clk 0:00:18]}  Rcd8+ {[%clk 0:00:13]} 57. Kc6 {[%clk 0:00:18]}  Rc8+ {[%clk 0:00:14]} 58. Kb5 {[%clk 0:00:19]}  Kd4 {[%clk 0:00:13]} 59. e6 {[%clk 0:00:19]}  Rb8 {[%clk 0:00:11]} 60. e7 {[%clk 0:00:19]}  Rbc8 {[%clk 0:00:11]} 61. Ka6 {[%clk 0:00:18]}  Ra8+ {[%clk 0:00:11]} 62. Kb7 {[%clk 0:00:18]}  Rab8+ {[%clk 0:00:11]} 63. Kc7 {[%clk 0:00:19]}  Rbc8+ {[%clk 0:00:12]} 64. Kd7 {[%clk 0:00:19]}  Rb8 {[%clk 0:00:11]} 65. Rh6 {[%clk 0:00:20]}  Rbc8 {[%clk 0:00:10]} 66. b7 {[%clk 0:00:19]}  Rb8 {[%clk 0:00:10]} 67. Kc7 {[%clk 0:00:20]}  Kc4 {[%clk 0:00:08]} 68. Rc6+ {[%clk 0:00:19]}  Kd5 {[%clk 0:00:09]} 69. Rd6+ {[%clk 0:00:20]}  Ke5 {[%clk 0:00:09]} 70. Rd8 {[%clk 0:00:20]} 1-0


[Site "https://www.chess.com"]